fUST/lending_fUST_20250110
["ID","MTS","AMOUNT","RATE_DAILY","PERIOD"]
[348386839,1736496437120,-300.0,0.00021915,2]
[348386840,1736496437144,-500.0,0.00021916,2]
[348386841,1736496437165,-500.0,0.00021916,2]
[348386842,1736496437187,-369.67935932,0.00021916,2]
[348386843,1736496437211,-500.0,0.00021916,2]
[348386844,1736496437236,-500.0,0.00021916,2]
[348386845,1736496437265,-500.0,0.00021916,2]
[348386846,1736496437291,-451.9437118,0.00021916,2]
[348386847,1736496437316,-500.0,0.00021916,2]
[348386848,1736496437342,-500.0,0.00021916,2]
[348386849,1736496437366,-500.0,0.00021916,2]
[348386850,1736496437391,-417.0130299,0.00021916,2]
[348386851,1736496443130,-82.9869701,0.00021916,2]
[348386852,1736496443152,-500.0,0.00021916,2]
[348386853,1736496443173,-500.0,0.00021916,2]
[348386854,1736496443193,-500.0,0.00021916,2]
[348386855,1736496443213,-500.0,0.00021916,2]
[348386856,1736496443233,-528.58301937,0.00021916,2]
[348386857,1736496443255,-500.0,0.00021916,2]
[348386858,1736496443277,-500.0,0.00021916,2]
[348386859,1736496443297,-297.03428099,0.00021916,2]
[348386860,1736496443317,-439.38839694,0.00021916,2]
[348386861,1736496444106,-60.61160306,0.00021916,2]
[348386862,1736496444126,-500.0,0.00021916,2]
[348386863,1736496444149,-188.41246947,0.00021916,2]
[348386865,1736496548084,-490.0,0.00019816,2]
[348386871,1736496570234,-169.23294205,0.00019422,2]
[348386872,1736496570257,-169.23294205,0.00019618,2]
[348386873,1736496570280,-138.13032557,0.00019816,2]
[348387111,1736496638669,-150.0,0.00019094,2]
[348387113,1736496638679,-150.0,0.00019287,2]
[348387114,1736496638688,-150.0,0.00019482,2]
[348387116,1736496638698,-31.10261648,0.00019816,2]
[348387119,1736496638708,-837.77601957,0.00020916,2]
[348387121,1736496638719,-85.92915123,0.00020916,2]
[348387123,1736496638729,-302.24359848,0.00021763,6]
[348387125,1736496638738,-182.86149713,0.00021817,2]
[348387127,1736496638749,-300.0,0.00021915,2]
[348387129,1736496638759,-311.58753053,0.00021916,2]
[348387131,1736496638769,-487.65747345,0.00021916,2]
[348387138,1736496638827,-12.34252655,0.00021916,2]
[348387140,1736496638837,-500.0,0.00021916,2]
[348387142,1736496638846,-202.08408923,0.00021916,2]
[348387144,1736496638856,-62.27993162,0.00021916,2]
[348387148,1736496638882,-169.42485197,0.00021916,2]
[348387151,1736496638891,-451.47059655,0.00021916,2]
[348387153,1736496638900,-315.06275844,0.00021917,3]
[348387593,1736496643592,-184.93724156,0.00021917,3]
[348387594,1736496643601,-500.0,0.00021917,3]
[348387595,1736496643611,-500.0,0.00021917,3]
[348387596,1736496643620,-502.46290777,0.00021917,3]
[348387597,1736496643630,-500.0,0.00021917,3]
[348387598,1736496643639,-598.62,0.00021917,3]
[348387600,1736496643649,-501.56765298,0.00021917,2]
[348387602,1736496643658,-181.9870577,0.00021917,3]
[348387604,1736496643667,-500.0,0.00021917,3]
[348387606,1736496643677,-500.0,0.00021917,3]
[348387608,1736496643686,-500.0,0.00021917,3]
[348387610,1736496643695,-500.0,0.00021917,3]
[348387612,1736496643703,-500.0,0.00021917,3]
[348387614,1736496643713,-500.0,0.00021917,3]
[348387615,1736496643721,-175.19,0.00021917,3]
[348387616,1736496643731,-500.0,0.00021917,3]
[348387617,1736496643740,-500.0,0.00021917,3]
[348387618,1736496643751,-500.0,0.00021917,3]
[348387619,1736496643760,-500.0,0.00021917,3]
[348387620,1736496643769,-506.45,0.00021917,3]
[348387621,1736496643779,-505.26713758,0.00021917,3]
[348387622,1736496643790,-400.11509546,0.00021917,3]
[348387623,1736496643800,-504.89986792,0.00021917,3]
[348387624,1736496643809,-504.68194227,0.00021917,3]
[348387625,1736496643818,-500.0,0.00021917,3]
[348387627,1736496643826,-502.10322181,0.00021917,3]
[348387628,1736496643835,-500.0,0.00021917,3]
[348387630,1736496643845,-500.0,0.00021917,3]
[348387631,1736496643854,-500.0,0.00021917,3]
[348387633,1736496643863,-500.0,0.00021917,3]
[348387635,1736496643872,-500.0,0.00021917,3]
[348387637,1736496643881,-500.0,0.00021917,3]
[348387639,1736496643889,-500.0,0.00021917,3]
[348387640,1736496643898,-500.0,0.00021917,3]
[348387642,1736496643908,-511.17100908,0.00021917,3]
[348387643,1736496643917,-140.65273634,0.00021917,3]
[348387660,1736496646597,-312.70654341,0.000219,2]
[348387661,1736496646607,-500.0,0.00021916,2]
[348387662,1736496646616,-500.0,0.00021916,2]
[348387663,1736496646626,-542.57461758,0.00021916,2]
[348387664,1736496646636,-369.68648952,0.00021916,2]
[348387665,1736496646646,-391.55442749,0.00021916,2]
[348387666,1736496646655,-458.12240529,0.00021916,2]
[348387667,1736496646664,-593.03638701,0.00021916,2]
[348387668,1736496646674,-362.22473798,0.00021917,3]
[348387669,1736496646684,-500.0,0.00021917,3]
[348387670,1736496646694,-208.85724172,0.00021917,3]
[348387671,1736496646704,-404.13704953,0.00021917,3]
[348387672,1736496646713,-504.24510552,0.00021917,3]
[348387673,1736496646723,-500.0,0.00021917,3]
[348387674,1736496646733,-2000.0,0.00021917,2]
[348387675,1736496646742,-504.82985212,0.00021917,3]
[348387676,1736496646752,-359.36408046,0.00021917,3]
[348387677,1736496646762,-503.74009942,0.00021917,3]
[348387678,1736496646774,-509.69230405,0.00021917,3]
[348387679,1736496646783,-502.83954893,0.00021917,3]
[348387680,1736496646794,-500.0,0.00021917,3]
[348387681,1736496646804,-500.0,0.00021917,3]
[348387682,1736496646813,-500.0,0.00021917,3]
[348387683,1736496646823,-584.67,0.00021917,3]
[348387684,1736496646832,-501.19531479,0.00021917,3]
[348387685,1736496646842,-500.0,0.00021917,3]
[348387686,1736496646851,-507.45525929,0.00021917,3]
[348387687,1736496646860,-500.0,0.00021917,3]
[348387688,1736496646870,-500.0,0.00021917,3]
[348387689,1736496646880,-504.39073884,0.00021917,3]
[348387690,1736496646890,-500.0,0.00021917,3]
[348387691,1736496646900,-502.05074802,0.00021917,3]
[348387692,1736496646909,-500.0,0.00021917,3]
[348387693,1736496646919,-500.0,0.00021917,3]
[348387694,1736496646928,-500.0,0.00021917,3]
[348387695,1736496646937,-500.0,0.00021917,3]
[348387696,1736496646947,-500.0,0.00021917,3]
[348387697,1736496646956,-500.0,0.00021917,2]
[348387698,1736496646966,-501.68418004,0.00021917,3]
[348387699,1736496646976,-557.73770742,0.00021917,3]
[348387700,1736496646985,-500.0,0.00021917,3]
[348387701,1736496646995,-506.88460467,0.00021917,3]
[348387702,1736496647004,-517.36145304,0.00021917,3]
[348387703,1736496647014,-504.8220294,0.00021917,3]
[348387704,1736496647024,-500.0,0.00021917,3]
[348387705,1736496647033,-500.0,0.00021917,3]
[348387706,1736496647045,-542.09759309,0.00021917,3]
[348387707,1736496647054,-500.0,0.00021917,3]
[348387708,1736496647065,-500.0,0.00021917,3]
[348387709,1736496647075,-500.0,0.00021917,3]
[348387710,1736496647085,-503.99782654,0.00021917,3]
[348387711,1736496647095,-503.39020575,0.00021917,3]
[348387712,1736496647104,-500.0,0.00021917,3]
[348387713,1736496647113,-500.0,0.00021917,3]
[348387714,1736496647122,-500.0,0.00021917,3]
[348387715,1736496647132,-505.22051995,0.00021917,3]
[348387716,1736496647142,-500.0,0.00021917,3]
[348387717,1736496647151,-505.69484763,0.00021917,3]
[348387718,1736496647160,-500.0,0.00021917,3]
[348387719,1736496647173,-503.44261956,0.00021917,3]
[348387720,1736496647182,-502.45567366,0.00021917,3]
[348387721,1736496647191,-500.0,0.00021917,3]
[348387722,1736496647201,-500.0,0.00021917,3]
[348387723,1736496647211,-509.17864702,0.00021917,3]
[348387724,1736496647220,-500.0,0.00021917,3]
[348387725,1736496647229,-583.74999315,0.00021917,3]
[348387726,1736496647238,-500.0,0.00021917,3]
[348387727,1736496647249,-500.0,0.00021917,3]
[348387728,1736496647258,-500.0,0.00021917,3]
[348387729,1736496647267,-503.50219391,0.00021917,3]
[348387730,1736496647277,-500.0,0.00021917,3]
[348387731,1736496647287,-500.0,0.00021917,3]
[348387732,1736496647298,-500.0,0.00021917,3]
[348387733,1736496647307,-157.53814307,0.00021917,3]
[348387734,1736496647316,-500.0,0.00021917,3]
[348387735,1736496647326,-2748.05,0.00021917,3]
[348387736,1736496647336,-212.61494212,0.00021917,3]
[348387737,1736496647346,-500.0,0.00021917,3]
[348387738,1736496647355,-500.0,0.00021917,3]
[348387739,1736496647365,-500.0,0.00021917,3]
[348387740,1736496647374,-500.0,0.00021917,3]
[348387741,1736496647383,-930.82,0.00021917,3]
[348387742,1736496647392,-500.0,0.00021917,3]
[348387743,1736496647402,-501.02765094,0.00021917,3]
[348387744,1736496647413,-500.0,0.00021917,3]
[348387745,1736496647422,-500.0,0.00021917,3]
[348387746,1736496647432,-500.0,0.00021917,3]
[348387747,1736496647442,-500.0,0.00021917,3]
[348387748,1736496647451,-500.0,0.00021917,3]
[348387749,1736496647460,-500.0,0.00021917,3]
[348387750,1736496647470,-500.0,0.00021917,3]
[348387751,1736496647479,-500.0,0.00021917,3]
[348387752,1736496647489,-500.0,0.00021917,3]
[348387753,1736496647499,-500.0,0.00021917,3]
[348387754,1736496647508,-500.0,0.00021917,3]
[348387755,1736496647517,-500.0,0.00021917,3]
[348387756,1736496647526,-500.0,0.00021917,3]
[348387757,1736496647536,-500.0,0.00021917,3]
[348387758,1736496647547,-212.38,0.00021917,3]
[348387759,1736496647556,-154.57,0.00021917,3]
[348387760,1736496647566,-500.0,0.00021917,3]
[348387761,1736496647575,-501.2525943,0.00021917,3]
[348387762,1736496647584,-503.10604169,0.00021917,3]
[348387763,1736496647594,-5712.6,0.00021917,3]
[348387764,1736496647603,-500.0,0.00021917,3]
[348387765,1736496647613,-500.0,0.00021917,3]
[348387766,1736496647622,-500.0,0.00021917,3]
[348387767,1736496647632,-500.0,0.00021917,3]
[348387768,1736496647641,-500.0,0.00021917,3]
[348387769,1736496647650,-504.88719687,0.00021917,3]
[348387770,1736496647660,-505.88047505,0.00021917,3]
[348387771,1736496647670,-500.0,0.00021917,3]
[348387772,1736496647680,-500.0,0.00021917,3]
[348387773,1736496647689,-500.0,0.00021917,3]
[348387774,1736496647699,-500.0,0.00021991,3]
[348387775,1736496647708,-593.80021999,0.00021992,3]
[348387776,1736496647718,-500.0,0.00021992,3]
[348387777,1736496647727,-500.0,0.00021992,3]
[348387778,1736496647736,-500.0,0.00021992,3]
[348387779,1736496647746,-500.0,0.00021992,3]
[348387780,1736496647755,-540.76477173,0.00021992,3]
[348387781,1736496647765,-628.82,0.00021992,3]
[348387782,1736496647774,-500.0,0.00021992,3]
[348387783,1736496647783,-500.0,0.00021998,3]
[348387784,1736496647795,-500.0,0.00021998,3]
[348387785,1736496647804,-29026.984213,0.00022,4]
[348387786,1736496647814,-500.0,0.0002219,3]
[348387787,1736496647823,-516.56884451,0.00022191,3]
[348387788,1736496647834,-276.28,0.00022191,3]
[348387789,1736496647843,-204.76665684,0.00022191,3]
[348387790,1736496647853,-500.0,0.00022191,3]
[348387791,1736496647862,-500.0,0.00022191,3]
[348387792,1736496647872,-202.86,0.00022191,3]
[348387793,1736496647882,-500.0,0.00022191,3]
[348387794,1736496647892,-500.0,0.00022191,3]
[348387795,1736496647902,-240.27,0.00022191,3]
[348387796,1736496647912,-243.11,0.00022191,2]
[348387797,1736496647921,-500.0,0.00022191,3]
[348387798,1736496647930,-500.0,0.00022191,3]
[348387799,1736496647939,-500.0,0.00022191,3]
[348387800,1736496647948,-500.0,0.00022191,3]
[348387801,1736496647957,-500.0,0.00022191,2]
[348387802,1736496647967,-500.0,0.00022191,3]
[348387803,1736496647977,-500.0,0.00022191,3]
[348387804,1736496647988,-442.94564879,0.00022191,3]
[348387805,1736496647999,-500.0,0.00022191,3]
[348387806,1736496648008,-500.0,0.00022191,3]
[348387807,1736496648101,-500.0,0.00022191,3]
[348387808,1736496648111,-500.0,0.00022191,3]
[348387809,1736496648120,-500.0,0.00022191,3]
[348387810,1736496648130,-500.0,0.00022191,3]
[348387811,1736496648140,-2748.05,0.00022191,3]
[348387812,1736496648152,-500.0,0.00022191,3]
[348387813,1736496648162,-391.46223653,0.00022191,3]
[348387814,1736496648175,-155.47,0.00022191,3]
[348387815,1736496648184,-500.0,0.00022191,3]
[348387816,1736496648194,-930.82,0.00022191,3]
[348387817,1736496648204,-500.0,0.00022191,3]
[348387818,1736496648215,-500.0,0.00022191,3]
[348387819,1736496648224,-500.0,0.00022191,3]
[348387820,1736496648234,-507.01029503,0.00022191,3]
[348387821,1736496648243,-500.0,0.00022191,3]
[348387822,1736496648254,-500.0,0.00022191,3]
[348387823,1736496648263,-500.0,0.00022191,3]
[348387824,1736496648273,-500.0,0.00022191,3]
[348387825,1736496648283,-5712.6,0.00022191,3]
[348387826,1736496648294,-500.0,0.00022191,3]
[348387827,1736496648304,-500.0,0.00022191,3]
[348387828,1736496648314,-500.0,0.00022191,3]
[348387829,1736496648323,-500.0,0.00022191,3]
[348387830,1736496648332,-500.0,0.00022191,3]
[348387831,1736496648342,-500.0,0.00022191,3]
[348387832,1736496648351,-500.0,0.00022191,3]
[348387833,1736496648360,-682.935,0.000222,2]
[348387834,1736496648370,-500.0,0.00022265,3]
[348387835,1736496648379,-537.05664909,0.00022266,3]
[348387836,1736496648388,-500.0,0.00022266,3]
[348387837,1736496648397,-500.0,0.00022266,3]
[348387838,1736496648407,-500.0,0.00022272,3]
[348387839,1736496648416,-500.0,0.00022272,3]
[348387840,1736496648425,-170.496462,0.00022421,2]
[348387841,1736496648435,-500.0,0.00022464,3]
[348387842,1736496648448,-376.12,0.00022465,3]
[348387843,1736496648457,-561.65125709,0.00022465,3]
[348387844,1736496648467,-500.0,0.00022465,3]
[348387845,1736496648476,-151.0,0.00022465,7]
[348387846,1736496648485,-597.31813888,0.00022465,3]
[348387847,1736496648494,-500.0,0.00022465,3]
[348387848,1736496648503,-174.284925,0.00022465,7]
[348387849,1736496648512,-500.0,0.00022465,3]
[348387850,1736496648521,-500.0,0.00022465,2]
[348387851,1736496648531,-500.0,0.00022465,3]
[348387852,1736496648541,-500.0,0.00022465,3]
[348387853,1736496648551,-500.0,0.00022465,3]
[348387854,1736496648560,-500.0,0.00022465,3]
[348387855,1736496648570,-500.0,0.00022465,3]
[348387856,1736496648580,-2748.05,0.00022465,3]
[348387857,1736496648589,-500.0,0.00022465,3]
[348387858,1736496648599,-500.0,0.00022465,3]
[348387859,1736496648608,-930.82,0.00022465,3]
[348387860,1736496648617,-640.65,0.00022465,3]
[348387861,1736496648627,-500.0,0.00022465,3]
[348387862,1736496648636,-500.0,0.00022465,3]
[348387863,1736496648646,-500.0,0.00022465,3]
[348387864,1736496648655,-500.0,0.00022465,3]
[348387865,1736496648665,-5712.6,0.00022465,3]
[348387866,1736496648674,-500.0,0.00022465,3]
[348387867,1736496648684,-500.0,0.00022465,3]
[348387868,1736496648693,-153.46487,0.00022465,7]
[348387869,1736496648703,-500.0,0.00022465,3]
[348387870,1736496648712,-500.0,0.00022465,3]
[348387871,1736496648721,-500.0,0.00022465,3]
[348387872,1736496648731,-533.8087262,0.00022465,3]
[348387873,1736496648739,-500.0,0.00022465,3]
[348387874,1736496648749,-11305.60129649,0.00022529,2]
[348387875,1736496648759,-649.64,0.0002254,3]
[348387876,1736496648768,-427.0,0.0002254,3]
[348387877,1736496648778,-500.0,0.00022546,3]
[348387878,1736496648787,-500.0,0.00022546,3]
[348387879,1736496648798,-490.8770948,0.00022548,2]
[348387880,1736496648807,-153.7491537,0.00022548,2]
[348387881,1736496648817,-422.7592009,0.00022548,2]
[348387882,1736496648826,-500.0,0.0002272,3]
[348387883,1736496648836,-433.62879702,0.00022739,3]
[348387884,1736496648845,-500.0,0.00022739,2]
[348387885,1736496648855,-500.0,0.00022739,3]
[348387886,1736496648865,-500.0,0.00022739,3]
[348387887,1736496648875,-500.0,0.00022739,3]
[348387888,1736496648884,-500.0,0.00022739,3]
[348387889,1736496648894,-500.0,0.00022739,3]
[348387890,1736496648903,-2748.05,0.00022739,3]
[348387891,1736496648913,-500.0,0.00022739,3]
[348387892,1736496648922,-930.82,0.00022739,3]
[348387893,1736496648931,-500.0,0.00022739,3]
[348387894,1736496648940,-500.0,0.00022739,3]
[348387895,1736496648949,-500.0,0.00022739,3]
[348387896,1736496648958,-5712.6,0.00022739,3]
[348387897,1736496648967,-393.15704487,0.00022739,3]
[348387898,1736496648976,-500.0,0.00022739,3]
[348387899,1736496648985,-500.0,0.00022739,3]
[348387900,1736496648995,-159.169327,0.00022789,7]
[348387901,1736496649004,-151.0,0.00022789,7]
[348387902,1736496649013,-498.65229059,0.0002282,3]
[348387903,1736496649022,-500.0,0.0002282,3]
[348387904,1736496649032,-151.0,0.00022877,7]
[348387905,1736496649041,-151.0,0.00022882,7]
[348387906,1736496649050,-500.0,0.00022961,3]
[348387907,1736496649060,-151.0,0.00022962,7]
[348387908,1736496649069,-151.0,0.00022962,7]
[348387909,1736496649080,-2715.0,0.00022966,4]
[348387910,1736496649095,-151.0,0.00022993,7]
[348387911,1736496649108,-11305.60129649,0.00022999,2]
[348387912,1736496649121,-500.0,0.00023012,3]
[348387913,1736496649131,-152.751302,0.00023013,7]
[348387914,1736496649141,-500.0,0.00023013,2]
[348387915,1736496649152,-500.0,0.00023013,3]
[348387916,1736496649164,-206.0,0.00023013,3]
[348387917,1736496649182,-500.0,0.00023013,3]
[348387918,1736496649194,-483.81373349,0.00023013,3]
[348387919,1736496649205,-2748.05,0.00023013,3]
[348387920,1736496649216,-233.4,0.00023013,3]
[348387921,1736496649228,-930.82,0.00023013,3]
[348387922,1736496649240,-500.0,0.00023013,3]
[348387923,1736496649252,-500.0,0.00023013,3]
[348387924,1736496649263,-5712.6,0.00023013,3]
[348387925,1736496649274,-500.0,0.00023013,3]
[348387926,1736496649285,-17579.05575472,0.00023069,14]
[348387927,1736496649297,-151.0,0.00023079,7]
[348387928,1736496649306,-151.0,0.0002313,7]
[348387929,1736496649316,-151.0,0.00023159,7]
[348387930,1736496649328,-500.0,0.000232,3]
[348387931,1736496649339,-1263.012818,0.000232,2]
[348387932,1736496649350,-151.0,0.00023201,7]
[348387933,1736496649362,-11305.60129651,0.00023226,2]
[348387934,1736496649373,-182.86149713,0.00023276,2]
[348387935,1736496649384,-151.0,0.00023287,7]
[348387936,1736496649395,-559.33827851,0.00023287,2]
[348387937,1736496649408,-500.0,0.00023287,3]
[348387938,1736496649420,-500.0,0.00023287,3]
[348387939,1736496649431,-2748.05,0.00023287,3]
[348387940,1736496649443,-930.82,0.00023287,3]
[348387941,1736496649455,-189.82,0.00023287,3]
[348387942,1736496649465,-187.94,0.00023287,3]
[348387943,1736496649476,-5712.6,0.00023287,3]
[348387944,1736496649486,-500.0,0.00023287,3]
[348387945,1736496649498,-2000.0,0.000233,2]
[348387946,1736496649510,-920.79,0.000233,2]
[348387947,1736496649521,-300.0,0.000233,10]
[348387948,1736496649533,-261.17831992,0.00023368,2]
[348387949,1736496649545,-151.0,0.00023368,7]
[348387950,1736496649556,-500.0,0.00023369,3]
[348387951,1736496649568,-500.0,0.00023369,3]
[348387952,1736496649580,-500.0,0.00023369,3]
[348387953,1736496649592,-500.0,0.00023369,3]
[348387954,1736496649603,-153.8340312,0.0002337,2]
[348387955,1736496649616,-214.7830993,0.0002337,2]
[348387956,1736496649628,-153.8340312,0.0002337,2]
[348387957,1736496649640,-2464.47179006,0.0002337,10]
[348387963,1736496815262,183.793066,0.00013973,2]
[348387965,1736497263969,-300.0,0.00017148,2]
[348387966,1736497263993,-15156.90045339,0.00017149,2]
[348387967,1736497264019,-366.33714233,0.00017321,2]
[348387968,1736497264047,-500.0,0.00017321,2]
[348387969,1736497264076,-155.68168884,0.00017321,2]
[348387970,1736497264099,-500.0,0.00017321,2]
[348387971,1736497264123,-500.0,0.00017321,2]
[348387972,1736497264148,-500.0,0.00017321,2]
[348387973,1736497264171,-500.0,0.00017321,2]
[348387974,1736497264195,-280.95366882,0.00017321,2]
[348387975,1736497264216,-5156.90045339,0.00017322,2]
[348387976,1736497264238,-5000.0,0.00017322,2]
[348387977,1736497264259,-5000.0,0.00017322,2]
[348387978,1736497264282,-420.0,0.00018727,2]
[348387979,1736497264304,-633.82219377,0.00019178,2]
[348387980,1736497271362,29.40439946,0.00019178,2]
[348387981,1736497559124,-1225.84400897,0.00018796,2]
[348387986,1736497625898,-3744.75159157,0.00018608,2]
[348387987,1736497625919,-246.62382154,0.00018796,2]
[348387988,1736497626102,-3498.12777003,0.00018796,2]
[348387989,1736497626124,-300.0,0.00019079,2]
[348387990,1736497626144,-302.51602579,0.00019082,2]
[348387991,1736497626166,-392.40583134,0.00019273,2]
[348387992,1736497626187,-228.5607302,0.00020104,2]
[348387993,1736497626208,-183.793066,0.00020447,2]
[348387994,1736497626228,-420.0,0.00020794,2]
[348387995,1736497626249,-87.99640064,0.000211,2]
[348387996,1736497632097,-575.3677415,0.00020889,2]
[348387997,1736497651091,-267.00620489,0.0002068,2]
[348387998,1736497651111,-267.00620489,0.00020889,2]
[348387999,1736497651132,-176.49601482,0.000211,2]
[348388003,1736497750116,-419.98458086,0.00017,7]
[348388004,1736497750140,-1118.88398569,0.000189,2]
[348388005,1736497750164,-151.64560958,0.00019,2]
[348388006,1736497750187,-300.0,0.00019999,2]
[348388007,1736497750211,-3208.0,0.00019999,2]
[348388008,1736497750234,-10919.18045693,0.0002,2]
[348388009,1736497750256,-267.00620489,0.00020268,2]
[348388010,1736497750276,-267.00620489,0.00020473,2]
[348388011,1736497750295,-2837.68046496,0.00020951,2]
[348388012,1736497753078,-490.0,0.00020951,2]
[348388013,1736497794539,182.282031,0.00013973,2]
[348388056,1736497831853,-182.282031,0.00020041,2]
[348388058,1736497831863,-427.21589338,0.00020143,2]
[348388060,1736497831873,-427.21589335,0.00020184,2]
[348388062,1736497831882,-427.21589335,0.00020225,2]
[348388064,1736497831892,-182.282031,0.00020243,2]
[348388066,1736497831901,-427.21589335,0.00020265,2]
[348388067,1736497831910,-427.21589335,0.00020306,2]
[348388068,1736497831920,-427.21589335,0.00020347,2]
[348388069,1736497831929,-182.282031,0.00020447,2]
[348388070,1736497831938,-22.89051344,0.00020951,2]
[348388071,1736497831947,-170.496462,0.00021226,2]
[348388072,1736497831957,-166.81163018,0.00021803,2]
[348388073,1736497831966,-300.0,0.00021899,2]
[348388074,1736497831975,-10675.0,0.00021899,2]
[348388075,1736497831985,-9009.96075733,0.000219,2]
[348388076,1736497831994,-223.9946697,0.00021916,2]
[348388077,1736497832003,-172.08796408,0.00021916,2]
[348388078,1736497832013,-421.77851241,0.00021916,2]
[348388079,1736497832022,-503.03345096,0.00021917,3]
[348388080,1736497832031,-500.0,0.00021917,3]
[348388081,1736497832040,-503.83945517,0.00021917,3]
[348388082,1736497832049,-504.11400006,0.00021917,3]
[348388083,1736497832058,-500.0,0.00021917,3]
[348388084,1736497832068,-500.58531173,0.00021917,3]
[348388085,1736497832077,-500.0,0.00021917,3]
[348388086,1736497832087,-507.23014097,0.00021917,3]
[348388087,1736497832096,-506.27560913,0.00021917,3]
[348388088,1736497832105,-508.69353227,0.00021917,3]
[348388089,1736497832114,-500.0,0.00021917,3]
[348388090,1736497832123,-502.60160238,0.00021917,3]
[348388091,1736497832133,-504.80690752,0.00021917,3]
[348388092,1736497832142,-490.83066028,0.00021917,3]
[348388093,1736497832151,-507.84653829,0.00021917,3]
[348388094,1736497832161,-500.0,0.00021917,3]
[348388095,1736497832173,-500.0,0.00021917,3]
[348388096,1736497832182,-500.0,0.00021917,3]
[348388097,1736497832191,-500.56686039,0.00021917,3]
[348388098,1736497832201,-505.74730975,0.00021917,3]
[348388099,1736497832210,-513.66194692,0.00021917,3]
[348388100,1736497832219,-511.47375019,0.00021917,3]
[348388101,1736497832228,-270.7156012,0.00021917,3]
[348388132,1736497837738,-500.0,0.00021899,2]
[348388134,1736497837748,-295.0757432,0.00021899,2]
[348388136,1736497837757,-500.0,0.00021899,2]
[348388138,1736497837767,-210.2363658,0.00021899,2]
[348388140,1736497837777,-234.77028846,0.00021917,3]
[348388142,1736497837787,-500.0,0.00021917,3]
[348388144,1736497837798,-507.44799032,0.00021917,3]
[348388146,1736497837809,-500.0,0.00021917,3]
[348388159,1736497837818,-504.55829691,0.00021917,3]
[348388161,1736497837930,-500.0,0.00021917,3]
[348388163,1736497837940,-504.11902655,0.00021917,3]
[348388165,1736497837950,-500.0,0.00021917,3]
[348388167,1736497837960,-500.0,0.00021917,3]
[348388169,1736497837969,-500.0,0.00021917,3]
[348388171,1736497837979,-500.0,0.00021917,3]
[348388173,1736497837989,-500.0,0.00021917,3]
[348388175,1736497837999,-503.15249136,0.00021917,3]
[348388177,1736497838008,-500.0,0.00021917,3]
[348388179,1736497838018,-504.34025481,0.00021917,3]
[348388181,1736497838027,-505.82817675,0.00021917,3]
[348388184,1736497838037,-507.14104956,0.00021917,3]
[348388186,1736497838046,-500.0,0.00021917,3]
[348388188,1736497838055,-503.219203,0.00021917,3]
[348388189,1736497838065,-500.0,0.00021917,3]
[348388192,1736497838075,-500.0,0.00021917,3]
[348388194,1736497838085,-500.0,0.00021917,3]
[348388196,1736497838096,-500.0,0.00021917,3]
[348388198,1736497838105,-500.0,0.00021917,3]
[348388200,1736497838114,-500.0,0.00021917,3]
[348388202,1736497838123,-500.0,0.00021917,3]
[348388204,1736497838133,-500.0,0.00021917,3]
[348388206,1736497838142,-500.0,0.00021917,3]
[348388208,1736497838152,-500.0,0.00021917,3]
[348388210,1736497838161,-2000.0,0.00021917,2]
[348388212,1736497838170,-500.0,0.00021917,3]